Cogmind - Beta 16 @@@ ROGUE MODE // 2025.11.20 @ 20:06:41 Player: GermanMO Result: Self-destructed Performance ------------- Evolutions (2) 1000 Regions Visited (4) 800 Robots Destroyed (15) 75 Value Destroyed (395) 395 Prototype IDs (0) 0 Alien Tech Used (0) 0 Bonus (33) 33 TOTAL SCORE: 2303 Bonus ------- Follower Combat Kills 33 Cogmind --------- Core Integrity 529/550 Matter 275/300 Energy 200/200 System Corruption 0% Temperature Cool (9) Movement Core (150) Ox2 Location -8/Materials Parts ------- > --- POWER (2) -------- Subdweller Power Source > --- PROPULSION (2) --- (None) > --- UTILITY (5) ------ Improved Terrain Scanner Improved Terrain Scan Processor Improved Terrain Scan Processor Utility Shielding > --- WEAPON (2) ------- Scythe > --- INVENTORY (5) ---- Medium Storage Unit Improved Terrain Scanner Peak State ------------ > --- POWER ------------ Subdweller Power Source > --- PROPULSION ------- Subdweller Monowheel > --- UTILITY ---------- Improved Sensor Array Improved Terrain Scanner Improved Terrain Scan Processor Improved Terrain Scan Processor Utility Shielding > --- WEAPON ----------- Heavy Particle Cannon Scythe > --- INVENTORY -------- Medium Storage Unit Improved Terrain Scanner [Rating: 23] Favorites ----------- Power Ion Engine Engine Ion Engine Propulsion Wheel Wheel Wheel Utility Improved Terrain Scan Processor Device Improved Terrain Scanner Storage Small Storage Unit Processor Improved Terrain Scan Processor Protection Utility Shielding Weapon Heavy Particle Cannon Energy Cannon Heavy Particle Cannon Ballistic Gun Assault Rifle Slashing Weapon Scythe Build | -11 -10 -10 -10 -8 ------- Run | Yrd Mat Min Sub Mat Slots Evolved 4 | . . . . 4 Power 1 | . . . . 1 Propulsion . | . . . . . Utility 3 | . . . . 3 Weapon . | . . . . . Parts Attached 21 | 7 4 3 4 3 Power 3 | 1 1 . 1 . Engine 3 | 1 1 . 1 . Core . | . . . . . Reactor . | . . . . . Propulsion 4 | 2 1 . 1 . Treads . | . . . . . Leg . | . . . . . Wheel 4 | 2 1 . 1 . Hover . | . . . . . Flight . | . . . . . Utility 10 | 2 2 2 1 3 Device 5 | 1 1 1 . 2 Storage 2 | 1 1 . . . Processor 2 | . . 1 . 1 Hackware . | . . . . . Protection 1 | . . . 1 . Artifact . | . . . . . Weapon 4 | 2 . 1 1 . Energy Gun . | . . . . . Energy Cannon 1 | . . 1 . . Ballistic Gun 2 | 2 . . . . Ballistic Cannon . | . . . . . Launcher . | . . . . . Special Weapon . | . . . . . Impact Weapon . | . . . . . Slashing Weapon 1 | . . . 1 . Piercing Weapon . | . . . . . Special Melee Weapon . | . . . . . Unidentified Prototypes . | . . . . . Parts Lost 9 | . 4 . 2 3 Power 2 | . 1 . 1 . Propulsion 4 | . 2 . 1 1 Utility 2 | . 1 . . 1 Weapon 1 | . . . . 1 Highest Loss Streak 4 | . 4 . 2 3 To Critical Strikes . | . . . . . Average Backups 3 | . 3 4 4 3 Power . | . . . . . Propulsion . | . . . . . Utility 3 | . 2 3 3 3 Weapon . | . . . . . Tool/Special . | . . . . . Unused Backups . | . . . . . Power . | . . . . . Propulsion . | . . . . . Utility . | . . . . . Weapon . | . . . . . Tool/Special . | . . . . . Average Slot Usage (%) 70 | . 78 64 71 64 Engine 12 | . 14 14 12 9 Wheel 14 | . 19 14 12 7 Device 6 | . 6 7 2 9 Storage 2 | . 8 . . . Processor 7 | . . 7 14 12 Protection 4 | . . . 11 9 Energy Cannon 7 | . . 6 14 9 Ballistic Gun 12 | . 28 14 . . Slashing Weapon 2 | . . . 3 9 Peak Build Rating 23 | 7 7 12 15 23 Average Rating 9 | 4 5 7 12 18 On Entrance 7 | . 7 4 12 15 Avg Prop Armor Cover (%) 8 | . . . . 8 Naked Turns . | . . . . . Heaviest Build 16 | 14 14 12 14 16 Greatest Support 26 | 26 26 10 20 20 Greatest Overweight (x) 5 | . 1 1 3 5 Average Overweight (x) . | . . . . . Largest Inventory Capacity 10 | 8 10 5 5 5 Average Capacity 5 | 7 6 5 5 5 Most Carried 5 | 3 4 5 5 5 Average Carried 3 | 1 3 4 4 3 Final Capacity 8 | 8 5 5 5 5 Final Carried 5 | 3 4 5 4 2 Class Distribution -------------------- 95% | Mutant 4% | Assassin Dominant Class ---------------- Mutant | -10/Materials Mutant | -10/Mines Mutant | -10/Subcaves Mutant | -8/Materials Resources | -11 -10 -10 -10 -8 ----------- Run | Yrd Mat Min Sub Mat Matter Collected 515 | 279 157 54 25 . Remotely . | . . . . . Salvage Created 568 | 130 157 15 109 157 Parts 32 | 6 7 . 5 14 Haulers Intercepted . | . . . . . Recyclers Shooed 1 | . 1 . . . Parts Field Recycled . | . . . . . Retrieved Matter . | . . . . . Parts Self-Destructed 7 | . . . 7 . Prevented . | . . . . . Parts Restored . | . . . . . Kills | -11 -10 -10 -10 -8 ------- Run | Yrd Mat Min Sub Mat Combat Hostiles Destroyed 12 | . 5 2 2 3 Melee 3 | . . . . 3 Guns 5 | . 5 . . . Cannons 4 | . . 2 2 . Classes Destroyed 8 | 2 3 1 1 1 Tunneler 3 | 3 . . . . Recycler 1 | 1 . . . . Watcher 1 | . 1 . . . Swarmer 3 | . 3 . . . Grunt 3 | . 2 . . 1 Specialist 2 | . . . . 2 Subdweller 2 | . . . 2 . Assembled 2 | . . 2 . . Best Kill Streak 4 | 3 4 2 2 3 Combat Bots Only 3 | . 3 2 2 3 Max Kills in Single Turn 1 | 1 1 1 1 1 Gunslinging . | . . . . . Exploded . | . . . . . Melee 1 | . . . . 1 Uniques/NPCs Destroyed . | . . . . . Combat | -11 -10 -10 -10 -8 -------- Run | Yrd Mat Min Sub Mat Hostile Shots Fired 99 | . 55 5 12 27 Missed 27 | . 12 . 4 11 Hits 72 | . 43 5 8 16 Projectile 72 | . 43 5 8 16 Critical Strikes 4 | . . 1 1 2 Damage Taken 948 | . 497 61 166 224 Core 237 | . 139 11 66 21 Absorbed by Shields . | . . . . . Redirected to Shielding 13 | . . . . 13 Core Remaining (%) 56 | 100 . . 13 . Volleys Fired 58 | 7 36 5 9 1 Largest 2 | 2 2 1 1 1 Hottest 75 | 40 40 75 75 75 Shots Fired 101 | 14 72 5 9 1 Gun 86 | 14 72 . . . Cannon 15 | . . 5 9 1 Launcher . | . . . . . Special . | . . . . . Kinetic 86 | 14 72 . . . Thermal 15 | . . 5 9 1 Explosive . | . . . . . Electromagnetic . | . . . . . Robot Hit Streak 7 | 6 6 3 6 7 Robot Miss Streak 4 | 1 4 2 2 . Penetration Max . | . . . . . Secondary Targets 3 | . 3 . . . Max Gunslinging Chain 1 | . 1 . . . Shots Hit Robots 71 | 9 43 3 7 9 Core Hits 27 | 6 14 2 2 3 Critical Kills . | . . . . . Critical Parts Destroyed . | . . . . . Critical Strikes 1 | . . . . 1 Sever 1 | . . . . 1 Melee Attacks 11 | . . . 2 9 Impact . | . . . . . Slashing 11 | . . . 2 9 Piercing . | . . . . . Sneak Attacks 1 | . . . . 1 Combat Hostiles . | . . . . . Follow-up Attacks . | . . . . . Damage Inflicted 1095 | 98 439 75 175 308 Guns 537 | 98 439 . . . Cannons 275 | . . 75 175 25 Explosions . | . . . . . Melee 283 | . . . . 283 Ramming . | . . . . . Kinetic 537 | 98 439 . . . Thermal 275 | . . 75 175 25 Explosive . | . . . . . Electromagnetic . | . . . . . Impact . | . . . . . Slashing 283 | . . . . 283 Piercing . | . . . . . Highest Corruption . | . . . . . Average Corruption . | . . . . . Corruption Purged . | . . . . . Corruption Blocked . | . . . . . Overload Shots . | . . . . . Overflow Damage 34 | . . . . 34 Projectiles . | . . . . . Explosions . | . . . . . Melee 34 | . . . . 34 Knockbacks . | . . . . . Impact . | . . . . . Kinetic . | . . . . . Secondary . | . . . . . Self-Inflicted Damage . | . . . . . Shots . | . . . . . Rammed . | . . . . . Targets Rammed . | . . . . . Kicked . | . . . . . Crushed . | . . . . . Highest Temperature 170 | . 18 170 29 22 Average Temperature 38 | . 8 87 17 9 Received Heat Transfer 303 | . 192 . 12 99 Siege Activations . | . . . . . Martial Activations . | . . . . . Shielding Activations . | . . . . . Robots Disrupted . | . . . . . Combat Hostiles . | . . . . . Robots Corrupted . | . . . . . Combat Hostiles . | . . . . . Parts Fried . | . . . . . Impact Corruptions . | . . . . . Robots Melted . | . . . . . Combat Hostiles . | . . . . . Parts Melted 1 | . . . 1 . Heat Transferred 407 | . . 111 259 37 Parts Sabotaged . | . . . . . Parts Stolen . | . . . . . Parts Stripped . | . . . . . Power Chain Reactions . | . . . . . Alert | -11 -10 -10 -10 -8 ------- Run | Yrd Mat Min Sub Mat Maximum Alert Level . | . . . . . Low Security (%) 100 | 100 100 100 . 100 Level 1 . | . . . . . Level 2 . | . . . . . Level 3 . | . . . . . Level 4 . | . . . . . Level 5 . | . . . . . High Security . | . . . . . Max Security . | . . . . . Peak Influence 61 | 10 57 . . 61 Initial . | . . . . . Average 7 | 1 11 . . 16 Influence Increases 280 | 20 127 . . 133 Destroy 0b10 Robot/C 180 | . 100 . . 80 Destroy 0b10 Robot/NC 25 | 20 5 . . . Destroy Leader 42 | . 22 . . 20 Allied During Kill 3 | . . . . 3 Lose Combat Pursuer 30 | . . . . 30 Influence Decreases 249 | 20 127 . . 102 Time Decay 159 | 20 87 . . 52 Lost Part 70 | . 40 . . 30 Lost Ally 20 | . . . . 20 Squads Dispatched 3 | . 1 1 . 1 Investigation 2 | . 1 1 . . Extermination . | . . . . . Reinforcement 1 | . . . . 1 Assault . | . . . . . Garrison . | . . . . . Intercept . | . . . . . Searches Triggered . | . . . . . Construction Impeded . | . . . . . Haulers Reinforced . | . . . . . Active Scanning Responses . | . . . . . Cargo Convoy Interrupts . | . . . . . Stealth | -11 -10 -10 -10 -8 --------- Run | Yrd Mat Min Sub Mat Distress Signals 1 | . . . . 1 Communications Jammed . | . . . . . Distress Signals . | . . . . . Times Spotted 25 | . 7 5 3 10 Peak Tracking Total 6 | . 6 3 2 4 Tactical Retreats 2 | . . . . 2 Traps | -11 -10 -10 -10 -8 ------- Run | Yrd Mat Min Sub Mat Traps Triggered 1 | . 1 . . . Indirectly . | . . . . . Trap Hack Attempts . | . . . . . Triggered . | . . . . . Disarmed . | . . . . . Reprogrammed . | . . . . . Reused . | . . . . . Traps Extracted . | . . . . . Installed . | . . . . . Triggered . | . . . . . Machines | -11 -10 -10 -10 -8 ---------- Run | Yrd Mat Min Sub Mat Machines Disabled . | . . . . . Max in Single Turn . | . . . . . Machines Repaired . | . . . . . Machines Dismantled . | . . . . . Machines Sabotaged . | . . . . . Overloaded Fab Kills . | . . . . . Hacking | -11 -10 -10 -10 -8 --------- Run | Yrd Mat Min Sub Mat Machines Accessed 2 | . . 1 1 . Terminals . | . . . . . Fabricators . | . . . . . Repair Stations . | . . . . . Recycling Units . | . . . . . Scanalyzers . | . . . . . Garrison Access . | . . . . . Total Hacks 5 | . . 1 4 . Successful 5 | . . 1 4 . Failed . | . . . . . Catastrophic . | . . . . . Database Lockouts . | . . . . . Manual 1 | . . . 1 . Terminals . | . . . . . Fabricators . | . . . . . Repair Stations . | . . . . . Recycling Units . | . . . . . Scanalyzers . | . . . . . Garrison Access . | . . . . . Terminal Hacks 5 | . . 1 4 . Record 4 | . . . 4 . Open Door 1 | . . 1 . . Fabricator Hacks . | . . . . . Repair Station Hacks . | . . . . . Recycling Unit Hacks . | . . . . . Scanalyzer . | . . . . . Garrison Access Hacks . | . . . . . Unauthorized Hacks . | . . . . . Terminals . | . . . . . Fabricators . | . . . . . Repair Stations . | . . . . . Recycling Units . | . . . . . Scanalyzers . | . . . . . Garrison Access . | . . . . . Data Cores Recovered . | . . . . . Used . | . . . . . Hacking Detections . | . . . . . Full Trace Events . | . . . . . Feedback Events . | . . . . . Feedback Blocked . | . . . . . Robot Schematics Acquired . | . . . . . Robots Built . | . . . . . Authchips . | . . . . . Time . | . . . . . Total Robot Build Rating . | . . . . . Part Schematics Acquired . | . . . . . Parts Built . | . . . . . Authchips . | . . . . . Time . | . . . . . Total Part Build Rating . | . . . . . Part Studies Acquired . | . . . . . Parts Repaired . | . . . . . Time . | . . . . . Parts Recycled . | . . . . . Recycled Matter . | . . . . . Retrieved Matter . | . . . . . Retrieved Components . | . . . . . Parts Scanalyzed . | . . . . . Part Schematics Acquired . | . . . . . Parts Damaged . | . . . . . Bothacking | -11 -10 -10 -10 -8 ------------ Run | Yrd Mat Min Sub Mat Used RIF Installer . | . . . . . Robots Hacked . | . . . . . Non-combat . | . . . . . Combat . | . . . . . Robot Hacks Applied . | . . . . . Relay Couplers Released . | . . . . . Fabnet Peak Effective % . | . . . . . Robots Rewired . | . . . . . Allies Hacked . | . . . . . Hacks Repelled . | . . . . . Allies | -11 -10 -10 -10 -8 -------- Run | Yrd Mat Min Sub Mat Total Allies 2 | . . 2 . . Largest Group 2 | . . 2 1 1 Highest-Rated Group 45 | . . 45 31 31 Highest-Rated Ally 31 | . . 31 31 31 Total Orders . | . . . . . Ally Attacks 7 | . . . 3 4 Total Damage 84 | . . . 43 41 Kills 1 | . . . . 1 Allies Corrupted . | . . . . . Allies Melted . | . . . . . Intel | -11 -10 -10 -10 -8 ------- Run | Yrd Mat Min Sub Mat Active Infowar (turns) 555 | 3 180 182 67 123 Sensors 123 | . . . . 123 Terrain 310 | . . 182 67 61 Seismic 183 | 3 180 . . . Robot Analysis Total . | . . . . . Derelict Logs Recovered 2 | . . 1 1 . Drone Launches . | . . . . . Drone Recoveries . | . . . . . Exploration | -11 -10 -10 -10 -8 ------------- Run | Yrd Mat Min Sub Mat Turns Passed 1355 | 82 383 341 375 174 Spaces Moved 928 | 51 200 280 295 102 Core 31 | 9 . . 13 9 Treads . | . . . . . Legs . | . . . . . Wheels 897 | 42 200 280 282 93 Hover . | . . . . . Flight . | . . . . . Fastest Speed 50 | 50 80 80 95 110 Average Speed 97 | 82 87 86 108 124 Slowest Speed 300 | 90 95 95 200 300 Overloaded Moves . | . . . . . Propulsion Burnouts . | . . . . . Robots Hopped . | . . . . . Potential Cave-ins . | . . . . . Cave-ins Triggered . | . . . . . Exploration Rate (%) 27 | 3 32 66 21 13 Regions Visited 4 Branch Regions 2 Pre-discovered Areas 1 | . . . 1 . Known Exits Taken . | . . . . . Unknown Exits Taken 4 | 1 1 1 1 . Scrap Searched . | . . . . . Spaces Dug . | . . . . . Terrain Destroyed 1 | . . 1 . . Melee . | . . . . . Projectile 1 | . . 1 . . AOE . | . . . . . Terrain Rammed . | . . . . . Walls Destroyed . | . . . . . Machines Disabled . | . . . . . Actions | -11 -10 -10 -10 -8 --------- Run | Yrd Mat Min Sub Mat Total 1269 | 78 344 375 338 134 Wait 228 | 4 99 81 26 18 Move 924 | 50 199 279 294 102 Hop . | . . . . . Pick Up 20 | 10 3 4 2 1 Fast Attach 2 | . . 1 1 . Attach 19 | 7 4 2 3 3 Detach 2 | . 2 . . . Swap . | . . . . . Drop 5 | . 1 3 1 . Fire 58 | 7 36 5 9 1 Melee 11 | . . . 2 9 Ram . | . . . . . Kick . | . . . . . Crush . | . . . . . Escape Stasis . | . . . . . Rewire . | . . . . . Trap . | . . . . . Miscellaneous . | . . . . . Route ------- -11/Scrapyard -10/Materials -10/Mines (discovered 2 exits: [*Mat] / *Sub) -10/Subcaves -8/Materials (discovered 2 exits: Fac / [*Sto]) History --------- Turn | Location | Event 33 | -11/Scrapyard | Discovered new exit (range 16) 83 | -11/Scrapyard | Entered Materials 234 | -10/Materials | Core integrity fell below 50% 270 | -10/Materials | Lost 4 parts (1p2n1u) 305 | -10/Materials | Build established: Mutant 335 | -10/Materials | Discovered new exit (range 9) 466 | -10/Materials | Entered Mines 467 | -10/Mines | Met a Derelict bent on vengeance 499 | -10/Mines | A weapon hastily lodged in a ceiling crevice suddenly fell to the ground 525 | -10/Mines | Discovered new exit (range 8) 597 | -10/Mines | Assembled infested the area 618 | -10/Mines | Met a Derelict shopkeep closing up shop 619 | -10/Mines | Learned 2 Materials zone layouts 794 | -10/Mines | Discovered new exit (range 5) 807 | -10/Mines | Entered Subcaves 807 | -10/Subcaves | Accompanied by 1 ally 808 | -10/Subcaves | Approached by a straggling Scientist 810 | -10/Subcaves | Learned Materials emergency access door positions 812 | -10/Subcaves | Led the pair of lost Derelicts to an unsafe place 829 | -10/Subcaves | Visited Clippyterm 832 | -10/Subcaves | Learned location of Extension (-6) 832 | -10/Subcaves | Learned Research security intel 890 | -10/Subcaves | Core integrity fell below 20% 1109 | -10/Subcaves | Discovered new exit (range 13) 1110 | -10/Subcaves | Shifting Twisted Machinery released Sub. Power Source 1147 | -10/Subcaves | Shifting Twisted Machinery released Flamer 1182 | -10/Subcaves | Entered Materials 1182 | -8/Materials | Accompanied by 1 ally 1182 | -8/Materials | Evolved 4 slots: Power x1, Utility x3 1183 | -8/Materials | Identified exit to Factory 1214 | -8/Materials | Discovered new exit (range 16) 1356 | -8/Materials | Self-destructed Last Messages --------------- 01232_ Acquired Imp. Sensor Array. 01260_ ALERT: Suspicious intruders detected, dispatching Specialist reinforcements to area. 01284_ W-25 Informer sends out distress signal. 01294_ Sub. Monowheel shoots sparks and powers down. 01307_ G-47 Trooper Aluminum Leg severed. 01309_ Critical hit (Burn: +37). 01309_ G-47 Trooper destroyed. 01313_ 5I-B6P(g) destroyed. 01317_ X-57 Shotgunner destroyed. 01325_ Broken Sub. Monowheel destroyed. 01326_ R-06 Scavenger collects Aluminum Leg. 01327_ X-57 Shotgunner destroyed. 01329_ R-06 Scavenger collects Hrd. Medium Armor Plating. 01332_ R-06 Scavenger collects VSS Leg. 01335_ Sneak attack on R-06 Scavenger. 01335_ Destroyed Com. Wheel. 01347_ Critical hit (Burn: +37). 01351_ Hvy. Particle Cannon destroyed. 01356_ Imp. Sensor Array destroyed. Map ----- +----------------------------------------------------+ | ?????????????????????????????????????????????????? | | ?????????????????????????????????????????????????? | | ?????????????????????????????????????????????????? | | ?????????????????????????????????????????????????? | | ?????????????????????????????????????????????????? | | ?????????????????????????????????????????????????? | | ?????????????????????????????????????????????????? | | ?????????????????????????????????????????????????? | | ?????????????????????????????????????????????????? | | ?????????????????????????????????????????????????? | | ????????????????????? ??"? ?????????????????? | | ????????????#????##?? ?? "?" ?????????????????# | | ???????????? ??##?#?# "???????#????????????????# | | ?????????? ? #####?#?"""??? ?#?#??????????????# | | ???????? ? ??#?### """ ? ??????#???????????# | | ??????? ? ??##?#### ?? ##???????????????# | | ??????""" """ ######????? ? ??????????????????# | | ????? """?""" #?##############?????#???????????# | | ????#???" ?""??## ######?#?????????????# | | ????# ? ???# #?#???#??????????????# | | ??#/#?###?####?## ??##?#?##????????????# | | ??# ? ? ####?? ? #####?#?#######??????# | | ??# ??##???####+############# #???#### | | +?+ """ ########## r ##### | | ??#?""""" + [ g a %< r | | ??#?""""" #######%!! @ * ##### | | ??# ?"""" #######+################ #???## ### | | ??# ?"""? # *!%*####?#######?####+###????# #?# | | ????? # """![=#?###?#?###?#?? ?????# #?# | | ??# ? ? # """ = #?###????###?# #????# #?# | | ???????+#?## """ #??#?####?#??# #???? #?# | | ??? ??? # #?#######?##?# #????###?# | | ?? ? ? ?+ """ #??##?#####??# "T" #????????# | | ????? ?? # """ #?###??#?#?#?# #????????# | | ????#####? # """ ##?###?##############????????# | | ?????####??# ? #????####??#?#???????????????? | | ????#####??################?####??#??????????????? | | ??????#??#??###########?#?#?##?#?????????????????? | | ???????#?? #####?##?###?##?#?#???????????????????? | | ???????#?? #####?###?##?#####?? ?????????????????? | | ?????????# ??#?###?###?####??????????????????????? | | ??????????+#???????###??#????????????????????????? | | ????????????##??#???#????????????????????????????? | | ????????????????? ???????????????????????????????? | | ?????????????????????????????????????????????????? | | ?????????????????????????????????????????????????? | | ???????????+??+??????????????????????????????????? | | ?????????????????????????????????????????????????? | | ?????????????????????????????????????????????????? | | ?????????????????????????????????????????????????? | +----------------------------------------------------+ Best States ------------- Heat Dissipation 31 Energy Generation 15 Energy Capacity 250 Matter Stores 300 Matter Capacity 300 Sight Range 16 Robot Scan Range 15 Terrain Scan Range 16 Terrain Scan Density 210 Utility Shielding 33 Evasion (%) 44 Item Schematics ----------------- None Robot Schematics ------------------ None Fabricated ------------ Nothing Repaired ---------- Nothing Studied --------- None Alien Tech Used ----------------- None Achievements -------------- None Challenges ------------ None Game ------ Seed InertialGyrokineticDeck Manual? 0 Play Time 00:22:55 Cumulative 24.9 hours Start 2025.11.17 @ 22:13:59 End 2025.11.20 @ 20:06:41 Sessions 4 Manual Loads 0 Difficulty Rogue Special Mode None Game No. 32 Rogue 13 Adventurer 0 Explorer 19 Win Type - Total 0 Types 0/0/0/0/0/0/0/0/0/0 Lore% 20 Gallery% 23 Achievement% 19 Wizard Run 0 Options --------- Layout 0 ASCII 0 Keyboard 0 Movement Mouse Keybinds 0 Fullscreen 2 Font 18/Smallcaps Map View 76x50 Zoom Use 0% Tactical HUD 1 Map Filters NONE Filters NONE Steam 1 RUN: 89df8eef-9110-4fae-8459-6d26cb0a9612